Cogmind - Beta 17 @@@ ROGUE MODE // 2026.06.28 @ 01:23:44 // Winter2019/RPGLIKE Player: Ethanw80 Result: Destroyed by Y-72 Warden with Railgun Performance ------------- Evolutions (5) 2500 Regions Visited (5) 1000 Robots Destroyed (35) 175 Value Destroyed (1250) 1250 Prototype IDs (0) 0 Alien Tech Used (0) 0 Bonus (0) 0 TOTAL SCORE: 4925 Bonus ------- None Cogmind --------- Core Integrity 0/1000 Matter 219/300 Energy 191/200 System Corruption 3% Temperature Cool (3) Movement Walking (120) Location -5/Upper Caves Parts ------- > --- POWER (2) -------- Micro Fission Core Micro Fission Core > --- PROPULSION (3) --- Thunder Leg Thunder Leg Thunder Leg > --- UTILITY (3) ------ Advanced Weight Redist. System Layered Heavy Armor Plating > --- WEAPON (2) ------- KE Penetrator Heavy Flak Cannon > --- INVENTORY (2) ---- (None) Peak State ------------ > --- POWER ------------ Micro Fission Core Micro Fission Core > --- PROPULSION ------- Thunder Leg Thunder Leg Thunder Leg > --- UTILITY ---------- Advanced Weight Redist. System Layered Heavy Armor Plating > --- WEAPON ----------- KE Penetrator Heavy Flak Cannon > --- INVENTORY -------- (None) [Rating: 56] Favorites ----------- Power Micro Fission Core Engine Subdweller Power Source Power Core Micro Fission Core Propulsion Light Treads Treads Light Treads Leg Thunder Leg Utility Improved Heat Sink Device Improved Heat Sink Protection Layered Heavy Armor Plating Weapon Heavy Flak Cannon Ballistic Gun Assault Rifle Ballistic Cannon Heavy Flak Cannon Launcher Grenade Launcher Build | -11 -10 -10 -7 -5 -5 ------- Run | Yrd Mat Sub Scr Fac Upp Slots Evolved 6 | 3 . 2 . 1 . Power 1 | . . 1 . . . Propulsion 2 | 1 . . . 1 . Utility 2 | 1 . 1 . . . Weapon 1 | 1 . . . . . Parts Attached 29 | 6 3 5 3 12 . Power 9 | 1 1 3 1 3 . Engine 5 | 1 1 3 . . . Core 4 | . . . 1 3 . Reactor . | . . . . . . Propulsion 6 | 2 . . 1 3 . Treads 3 | 2 . . 1 . . Leg 3 | . . . . 3 . Wheel . | . . . . . . Hover . | . . . . . . Flight . | . . . . . . Utility 7 | 2 1 1 . 3 . Device 5 | 2 1 . . 2 . Storage . | . . . . . . Processor . | . . . . . . Hackware . | . . . . . . Protection 2 | . . 1 . 1 . Artifact . | . . . . . . Weapon 7 | 1 1 1 1 3 . Energy Gun . | . . . . . . Energy Cannon . | . . . . . . Ballistic Gun 5 | 1 . 1 1 2 . Ballistic Cannon 1 | . . . . 1 . Launcher 1 | . 1 . . . . Special Weapon . | . . . . . . Impact Weapon . | . . . . . . Slashing Weapon . | . . . . . . Piercing Weapon . | . . . . . . Special Melee Weapon . | . . . . . . Unidentified Prototypes . | . . . . . . Parts Lost . | . . . . . . Power . | . . . . . . Propulsion . | . . . . . . Utility . | . . . . . . Weapon . | . . . . . . Highest Loss Streak . | . . . . . . To Critical Strikes . | . . . . . . Average Backups . | . . . 1 . . Power . | . . . . . . Propulsion . | . . . . . . Utility . | . . . . . . Weapon . | . . . 1 . . Tool/Special . | . . . . . . Unused Backups 2 | . . . . 2 . Power 1 | . . . . 1 . Propulsion . | . . . . . . Utility 1 | . . . . 1 . Weapon . | . . . . . . Tool/Special . | . . . . . . Average Slot Usage (%) 77 | . 91 83 57 76 90 Engine 5 | . 14 16 1 . . Core 6 | . . . 4 10 20 Treads 12 | . 28 22 21 1 . Leg 11 | . . . . 21 30 Device 12 | . 28 11 11 10 10 Protection 9 | . . 10 11 10 10 Ballistic Gun 9 | . 14 11 4 10 10 Ballistic Cannon 4 | . . . . 9 10 Launcher 4 | . 5 11 4 . . Peak Build Rating 56 | 8 11 16 21 56 56 Average Rating 27 | 4 9 14 13 44 56 On Entrance 18 | . 8 11 16 21 56 Avg Prop Armor Cover (%) . | . . . . . . Naked Turns . | . . . . . . Heaviest Build 49 | 7 12 34 34 49 43 Greatest Support 78 | 40 40 40 42 78 78 Greatest Overweight (x) 1 | . . . . 1 . Average Overweight (x) . | . . . . . . Largest Inventory Capacity 2 | 2 2 2 2 2 2 Average Capacity 2 | 2 2 2 2 2 2 Most Carried 2 | 2 2 2 2 2 . Average Carried 1 | . . 1 1 . . Final Capacity 2 | 2 2 2 2 2 2 Final Carried 2 | . 1 2 . . . Class Distribution -------------------- 86% | Mutant 13% | Subdweller-Mutant Dominant Class ---------------- Mutant | -10/Materials Subdweller-Mutant | -10/Subcaves Mutant | -7/Scraptown Mutant | -5/Factory Mutant | -5/Upper Caves Resources | -11 -10 -10 -7 -5 -5 ----------- Run | Yrd Mat Sub Scr Fac Upp Matter Collected 1191 | 278 64 246 19 510 74 Remotely 47 | 35 12 . . . . Salvage Created 972 | 171 43 212 . 382 164 Parts 62 | 10 10 14 . 17 11 Haulers Intercepted . | . . . . . . Recyclers Shooed . | . . . . . . Parts Field Recycled . | . . . . . . Retrieved Matter . | . . . . . . Parts Self-Destructed 25 | . . 15 . . 10 Prevented . | . . . . . . Parts Restored . | . . . . . . Kills | -11 -10 -10 -7 -5 -5 ------- Run | Yrd Mat Sub Scr Fac Upp Combat Hostiles Destroyed 28 | . 5 7 . 9 7 Guns 9 | . 2 1 . 5 1 Cannons 10 | . . . . 4 6 AOE 9 | . 3 6 . . . Classes Destroyed 13 | 2 4 1 . 5 1 Worker 1 | . 1 . . . . Builder 1 | . . . . 1 . Tunneler 3 | 3 . . . . . Recycler 1 | 1 . . . . . Watcher 1 | . 1 . . . . Swarmer 8 | . 3 . . . 5 Grunt 5 | . 2 . . 3 . Duelist 1 | . . . . 1 . Sentry 2 | . . . . 2 . Hunter 2 | . . . . . 2 Programmer 2 | . . . . 2 . Behemoth 1 | . . . . 1 . Subdweller 7 | . . 7 . . . Best Kill Streak 5 | 3 3 5 . 5 4 Combat Bots Only 5 | . 3 5 . 4 4 Max Kills in Single Turn 2 | 1 2 2 . 1 1 Gunslinging . | . . . . . . Exploded 2 | . 2 2 . . . Melee . | . . . . . . Uniques/NPCs Destroyed . | . . . . . . Combat | -11 -10 -10 -7 -5 -5 -------- Run | Yrd Mat Sub Scr Fac Upp Hostile Shots Fired 210 | . 28 30 . 92 60 Missed 83 | . 10 10 . 39 24 Hits 127 | . 18 20 . 53 36 Melee 1 | . . . . 1 . Projectile 126 | . 18 20 . 52 36 Critical Strikes 2 | . . . . 2 . Damage Taken 2525 | . 230 484 . 1184 627 Core 1561 | . 183 274 . 691 413 Absorbed by Shields . | . . . . . . Redirected to Core 1325 | . 160 274 . 536 355 Core Remaining (%) 100 | 100 . . 100 . . Volleys Fired 106 | 6 22 25 . 40 13 Largest 2 | 1 2 1 . 2 2 Hottest 77 | 20 50 30 . 77 77 Shots Fired 158 | 6 23 25 . 77 27 Gun 93 | 6 18 15 . 40 14 Cannon 50 | . . . . 37 13 Launcher 15 | . 5 10 . . . Special . | . . . . . . Kinetic 143 | 6 18 15 . 77 27 Thermal . | . . . . . . Explosive 15 | . 5 10 . . . Electromagnetic . | . . . . . . Robot Hit Streak 13 | 2 10 13 . 13 8 Robot Miss Streak 6 | 1 3 2 . 3 6 Penetration Max . | . . . . . . Secondary Targets . | . . . . . . Shots Hit Robots 120 | 4 12 16 . 67 21 Core Hits 108 | 4 12 15 . 50 27 Critical Kills . | . . . . . . Critical Parts Destroyed . | . . . . . . Critical Strikes 1 | . . . . 1 . Destroy 1 | . . . . 1 . Melee Attacks . | . . . . . . Impact . | . . . . . . Slashing . | . . . . . . Piercing . | . . . . . . Sneak Attacks . | . . . . . . Combat Hostiles . | . . . . . . Follow-up Attacks . | . . . . . . Damage Inflicted 3644 | 53 322 964 . 1902 403 Guns 1422 | 53 140 165 . 907 157 Cannons 1241 | . . . . 995 246 Explosions 981 | . 182 799 . . . Melee . | . . . . . . Ramming . | . . . . . . Kinetic 2663 | 53 140 165 . 1902 403 Thermal . | . . . . . . Explosive 981 | . 182 799 . . . Electromagnetic . | . . . . . . Impact . | . . . . . . Slashing . | . . . . . . Piercing . | . . . . . . Highest Corruption 3 | . . . . 3 3 Average Corruption 2 | . . . . 2 3 Corruption Purged . | . . . . . . Corruption Blocked . | . . . . . . Effects 6 | . . . . 1 5 Matter Fused 1 | . . . . 1 . Heat Flow Errors 2 | . . . . . 2 Energy Discharges 1 | . . . . . 1 Data Loss (major) 1 | . . . . . 1 Misfires 1 | . . . . . 1 Overload Shots . | . . . . . . Overflow Damage 1 | . . . . 1 . Projectiles 1 | . . . . 1 . Explosions . | . . . . . . Melee . | . . . . . . Knockbacks 11 | . . . . 8 3 Impact . | . . . . . . Kinetic 11 | . . . . 8 3 Secondary . | . . . . . . Self-Inflicted Damage 66 | . 37 29 . . . Shots 4 | . 2 2 . . . Rammed . | . . . . . . Targets Rammed . | . . . . . . Kicked . | . . . . . . Crushed . | . . . . . . Highest Temperature 212 | . . . . 9 212 Average Temperature 72 | . . . . 9 78 Received Heat Transfer 348 | . 63 75 . 201 9 Siege Activations . | . . . . . . Martial Activations . | . . . . . . Shielding Activations . | . . . . . . Robots Disrupted . | . . . . . . Combat Hostiles . | . . . . . . Robots Corrupted . | . . . . . . Combat Hostiles . | . . . . . . Parts Fried . | . . . . . . Impact Corruptions . | . . . . . . Robots Melted . | . . . . . . Combat Hostiles . | . . . . . . Parts Melted . | . . . . . . Heat Transferred . | . . . . . . Parts Sabotaged . | . . . . . . Parts Stolen . | . . . . . . Parts Stripped . | . . . . . . Power Chain Reactions . | . . . . . . Alert | -11 -10 -10 -7 -5 -5 ------- Run | Yrd Mat Sub Scr Fac Upp Maximum Alert Level . | . . . . . . Low Security (%) 100 | 100 100 . . 100 . Level 1 . | . . . . . . Level 2 . | . . . . . . Level 3 . | . . . . . . Level 4 . | . . . . . . Level 5 . | . . . . . . High Security . | . . . . . . Max Security . | . . . . . . Peak Influence 132 | 10 100 . . 132 . Initial . | . . . . . . Average 23 | 3 29 . . 23 . Influence Increases 644 | 20 160 . . 244 220 Destroy 0b10 Robot/C 420 | . 100 . . 180 140 Destroy 0b10 Robot/NC 40 | 20 10 . . 10 . Destroy Leader 92 | . 22 . . 50 20 Destroy Structure 32 | . 28 . . 4 . Lose Combat Pursuer 60 | . . . . . 60 Influence Decreases 441 | 20 70 90 . 126 135 Entered New Map 89 | . . 44 . . 45 Time Decay 352 | 20 70 46 . 126 90 Squads Dispatched 1 | . . . . 1 . Investigation . | . . . . . . Extermination 1 | . . . . 1 . Reinforcement . | . . . . . . Assault . | . . . . . . Garrison . | . . . . . . Intercept . | . . . . . . Searches Triggered . | . . . . . . Construction Impeded . | . . . . . . Haulers Reinforced . | . . . . . . Active Scanning Responses . | . . . . . . Cargo Convoy Interrupts . | . . . . . . Stealth | -11 -10 -10 -7 -5 -5 --------- Run | Yrd Mat Sub Scr Fac Upp Distress Signals . | . . . . . . Communications Jammed . | . . . . . . Distress Signals . | . . . . . . Times Spotted 46 | . 8 16 . 9 13 Peak Tracking Total 8 | . 3 8 . 4 7 Tactical Retreats 2 | . . . . . 2 Traps | -11 -10 -10 -7 -5 -5 ------- Run | Yrd Mat Sub Scr Fac Upp Traps Triggered . | . . . . . . Indirectly . | . . . . . . Trap Hack Attempts . | . . . . . . Triggered . | . . . . . . Disarmed . | . . . . . . Reprogrammed . | . . . . . . Reused . | . . . . . . Traps Extracted . | . . . . . . Installed . | . . . . . . Triggered . | . . . . . . Machines | -11 -10 -10 -7 -5 -5 ---------- Run | Yrd Mat Sub Scr Fac Upp Machines Disabled 1 | . 1 . . . . Max in Single Turn 1 | . 1 . . . . Machines Repaired . | . . . . . . Machines Dismantled . | . . . . . . Machines Sabotaged . | . . . . . . Overloaded Fab Kills . | . . . . . . Hacking | -11 -10 -10 -7 -5 -5 --------- Run | Yrd Mat Sub Scr Fac Upp Machines Accessed 5 | . 1 . 1 3 . Terminals 1 | . . . . 1 . Fabricators 1 | . . . . 1 . Repair Stations . | . . . . . . Recycling Units 2 | . 1 . . 1 . Scanalyzers . | . . . . . . Garrison Access . | . . . . . . Total Hacks 14 | . 1 . 9 4 . Successful 14 | . 1 . 9 4 . Failed . | . . . . . . Catastrophic . | . . . . . . Database Lockouts . | . . . . . . Manual . | . . . . . . Terminals 1 | . . . . 1 . Fabricators 1 | . . . . 1 . Repair Stations . | . . . . . . Recycling Units 3 | . 1 . . 2 . Scanalyzers . | . . . . . . Garrison Access . | . . . . . . Terminal Hacks 10 | . . . 9 1 . Record 9 | . . . 9 . . Alert Level 1 | . . . . 1 . Fabricator Hacks 1 | . . . . 1 . Network Status 1 | . . . . 1 . Repair Station Hacks . | . . . . . . Recycling Unit Hacks 3 | . 1 . . 2 . Process 1 | . . . . 1 . Report Inventory 1 | . 1 . . . . Retrieve Matter 1 | . . . . 1 . Scanalyzer . | . . . . . . Garrison Access Hacks . | . . . . . . Unauthorized Hacks . | . . . . . . Terminals . | . . . . . . Fabricators . | . . . . . . Repair Stations . | . . . . . . Recycling Units . | . . . . . . Scanalyzers . | . . . . . . Garrison Access . | . . . . . . Data Cores Recovered . | . . . . . . Used . | . . . . . . Hacking Detections 3 | . 1 . . 2 . Full Trace Events . | . . . . . . Feedback Events . | . . . . . . Feedback Blocked . | . . . . . . Robot Schematics Acquired . | . . . . . . Robots Built . | . . . . . . Authchips . | . . . . . . Time . | . . . . . . Total Robot Build Rating . | . . . . . . Part Schematics Acquired . | . . . . . . Parts Built . | . . . . . . Authchips . | . . . . . . Time . | . . . . . . Total Part Build Rating . | . . . . . . Part Studies Acquired . | . . . . . . Parts Repaired . | . . . . . . Time . | . . . . . . Parts Recycled . | . . . . . . Recycled Matter 256 | . . . . 256 . Retrieved Matter 256 | . . . . 256 . Retrieved Components . | . . . . . . Parts Scanalyzed . | . . . . . . Part Schematics Acquired . | . . . . . . Parts Damaged . | . . . . . . Bothacking | -11 -10 -10 -7 -5 -5 ------------ Run | Yrd Mat Sub Scr Fac Upp Used RIF Installer . | . . . . . . Robots Hacked . | . . . . . . Non-combat . | . . . . . . Combat . | . . . . . . Robot Hacks Applied . | . . . . . . Relay Couplers Released . | . . . . . . Fabnet Peak Effective % . | . . . . . . Robots Rewired . | . . . . . . Allies Hacked . | . . . . . . Hacks Repelled . | . . . . . . Allies | -11 -10 -10 -7 -5 -5 -------- Run | Yrd Mat Sub Scr Fac Upp Total Allies . | . . . . . . Largest Group . | . . . . . . Highest-Rated Group . | . . . . . . Highest-Rated Ally . | . . . . . . Total Orders . | . . . . . . Ally Attacks . | . . . . . . Total Damage . | . . . . . . Kills . | . . . . . . Allies Corrupted . | . . . . . . Allies Melted . | . . . . . . Intel | -11 -10 -10 -7 -5 -5 ------- Run | Yrd Mat Sub Scr Fac Upp Active Infowar (turns) 231 | 8 213 10 . . . Terrain 231 | 8 213 10 . . . Robot Analysis Total . | . . . . . . Derelict Logs Recovered . | . . . . . . Drone Launches . | . . . . . . Drone Recoveries . | . . . . . . Exploration | -11 -10 -10 -7 -5 -5 ------------- Run | Yrd Mat Sub Scr Fac Upp Turns Passed 2159 | 80 213 512 367 801 186 Spaces Moved 1179 | 42 93 267 220 434 123 Core 9 | 9 . . . . . Treads 631 | 33 93 267 220 18 . Legs 539 | . . . . 416 123 Wheels . | . . . . . . Hover . | . . . . . . Flight . | . . . . . . Fastest Speed 50 | 50 160 160 152 120 120 Average Speed 148 | 136 160 160 156 144 120 Slowest Speed 170 | 160 160 160 160 170 120 Overloaded Moves . | . . . . . . Propulsion Burnouts . | . . . . . . Robots Hopped . | . . . . . . Potential Cave-ins . | . . . . . . Cave-ins Triggered . | . . . . . . Exploration Rate (%) 16 | 4 17 22 23 10 24 Regions Visited 5 Branch Regions 3 Pre-discovered Areas 1 | . . 1 . . . Known Exits Taken . | . . . . . . Unknown Exits Taken 5 | 1 1 1 1 1 . Scrap Searched 1 | . . . 1 . . Spaces Dug 31 | . . 31 . . . Terrain Destroyed 95 | . 27 65 . . 3 Melee . | . . . . . . Projectile 3 | . . . . . 3 AOE 92 | . 27 65 . . . Terrain Rammed . | . . . . . . Walls Destroyed . | . . . . . . Machines Disabled . | . . . . . . Actions | -11 -10 -10 -7 -5 -5 --------- Run | Yrd Mat Sub Scr Fac Upp Total 1440 | 58 134 328 247 537 136 Wait 32 | . 7 6 2 17 . Move 1174 | 41 92 266 219 433 123 Hop . | . . . . . . Pick Up 27 | 5 4 4 1 13 . Fast Attach 9 | 1 . 4 2 2 . Attach 21 | 5 1 1 4 10 . Detach 5 | . . . 4 1 . Swap 4 | . 2 . . 2 . Drop 27 | . 2 6 6 13 . Fire 106 | 6 22 25 . 40 13 Melee . | . . . . . . Ram . | . . . . . . Kick . | . . . . . . Crush . | . . . . . . Escape Stasis . | . . . . . . Rewire 1 | . . . . 1 . Trap . | . . . . . . Miscellaneous 34 | . 4 16 9 5 . Route ------- -11/Scrapyard -10/Materials (discovered 2 exits: [*Min] / [*Sub]) -10/Subcaves -7/Scraptown -5/Factory -5/Upper Caves History --------- Turn | Location | Event 1 | -11/Scrapyard | Upgraded with Propulsion slot (x1) 1 | -11/Scrapyard | Upgraded with Utility slot (x1) 1 | -11/Scrapyard | Upgraded with Weapon slot (x1) 7 | -11/Scrapyard | Discovered new exit (range 14) 81 | -11/Scrapyard | Entered Materials 187 | -10/Materials | Discovered new exit (range 13) 264 | -10/Materials | Discovered new exit (range 9) 294 | -10/Materials | Entered Subcaves 295 | -10/Subcaves | Approached by a straggling Scientist 296 | -10/Subcaves | Reached level 2 296 | -10/Subcaves | Upgraded with Power slot (x1) 296 | -10/Subcaves | Upgraded with Utility slot (x1) 326 | -10/Subcaves | Build established: Mutant 390 | -10/Subcaves | A swath of the cavern ceiling suddenly collapsed 421 | -10/Subcaves | Ambushed by Subdweller buried in earth 421 | -10/Subcaves | Ambushed by Subdweller buried in earth 425 | -10/Subcaves | Ambushed by Subdweller buried in earth 555 | -10/Subcaves | Ambushed by swarm of Subdwellers 557 | -10/Subcaves | Ambushed by Subdwellers from Twisted Machinery 561 | -10/Subcaves | Ambushed by Subdwellers from Twisted Machinery 561 | -10/Subcaves | Ambushed by Subdwellers from Twisted Machinery 770 | -10/Subcaves | Learned location of Zion (-6) 770 | -10/Subcaves | Met a Zionite searching for "candidates" 798 | -10/Subcaves | Scientist uncovered a shortcut to Scraptown 806 | -10/Subcaves | Entered Scraptown 1136 | -7/Scraptown | Discovered new exit (range 5) 1173 | -7/Scraptown | Entered Factory 1175 | -5/Factory | Reached level 3 1749 | -5/Factory | Spotted B-75 Beast 1786 | -5/Factory | Destroyed B-75 Beast 1800 | -5/Factory | Core integrity fell below 50% 1845 | -5/Factory | Reached level 4 1876 | -5/Factory | Upgraded with Propulsion slot (x1) 1971 | -5/Factory | Discovered new exit (range 3) 1974 | -5/Factory | Entered Upper Caves 1976 | -5/Upper Caves | Core integrity fell below 20% 2075 | -5/Upper Caves | Attracted the attention of an 0b10 outpost 2079 | -5/Upper Caves | Attracted the attention of an 0b10 checkpoint 2152 | -5/Upper Caves | Reached level 5 2160 | -5/Upper Caves | Destroyed by Y-72 Warden with Railgun Last Messages --------------- 02115_ System corrupted: Energy discharge (-62). 02126_ Penetrated by Slug. 02137_ S-27 Virus destroyed. 02138_ System corrupted: FCS attempts to trigger KE Penetrator. 02138_ System corrupted: KE Penetrator misfires. 02138_ Slug penetrates S-27 Virus. 02138_ S-27 Virus destroyed. 02140_ Slug penetrates Wall. 02140_ S-27 Virus knocked back. 02140_ S-27 Virus destroyed. 02146_ Slug penetrates S-27 Virus. 02146_ S-27 Virus knocked back. 02148_ Autogun fries itself beyond repair. 02152_ VTOL Module fries itself beyond repair. 02152_ Slug penetrates S-27 Virus. 02152_ Destroyed VTOL Module. 02152_ Reached level 5. 02152_ S-27 Virus destroyed. 02153_ Lgt. Nuclear Core fries itself beyond repair. 02154_ VTOL Module fries itself beyond repair. Map ----- +----------------------------------------------------+ | ?????????????????????????????????????????????????? | | ?????????????????????????????????????????????????? | | ?????????????????????????????????????????????????? | | ?????????????????????????????????????????????????? | | ?????????????????????????????????????????????????? | | ?????????????????????????????? ?????????????????? | | ???????????????????????????? ?????????????????? | | ???????????????????????????? ?????????????????? | | ????????????????????????????? !?????????????????? | | ?????????????????????????????# %#???????? ### # | | ?????????????????????????????# #???????? $ | | ?????????????????????????????# #???????? | | ????????????????????????????## ####????? | | ??????????????????????????### %% ####??? | | ?????????????????????????## %=% #???# | | ?????????????????????????# ##?#### | | ????????????????????????## Y ### ## | | ????????????????????????# ##???# | | ????????????????????????# !%! ###??## | | ???????????????????###### ! #???? | | ???????????????????# #???? | | ???????????????????# ## ##??? | | ??????????????????## ##### ##?? | | ?????????????????## ##???###### ##? | | ?????????????????# #????????## ## | | ?????????????????# @ #???????## # | | ?????????????????# ##???????# | | ???????????? ### #???????# ## | | ??????????? ???## #???????# ### | | ??????????? ???????## #??????# #?## | | ???????????? S ??????????## #?????# #??# | | ???????????? ?????????????# #????## ##??### | | ???????????????????????????# #?????## #??????# | | ??????????????????????????? #??????## ??????? | | ??????????????????????????? #???????##??????# | | ??????????????????????????? #???????????????# | | ??????????????????????????? ???????????????# | | ??????????????????????????? ??????????????## | | ??????????????????????????? ???????????????? | | ???????????????????????????? ?????????????????? | | ????????????????????????????? ???????????????????? | | ?????????????????????????????????????????????????? | | ?????????????????????????????????????????????????? | | ?????????????????????????????????????????????????? | | ?????????????????????????????????????????????????? | | ?????????????????????????????????????????????????? | | ?????????????????????????????????????????????????? | | ?????????????????????????????????????????????????? | | ?????????????????????????????????????????????????? | | ?????????????????????????????????????????????????? | +----------------------------------------------------+ Best States ------------- Heat Dissipation 55 Energy Generation 35 Energy Capacity 350 Matter Stores 300 Matter Capacity 300 Sight Range 16 Terrain Scan Range 16 Terrain Scan Density 10 Additional Mass Support 9 Armor Coverage 800 Point Defense Rating 80 Evasion (%) 70 Recoil Reduction 2 Item Schematics ----------------- None Robot Schematics ------------------ None Fabricated ------------ Nothing Repaired ---------- Nothing Studied --------- None Alien Tech Used ----------------- None Achievements -------------- Civilization 2243 Do Not Disturb Nice Directions, Buddy Oops Survival Of The Most Covered Challenges ------------ None RPGLIKE | -11 -10 -10 -7 -5 -5 --------- Run | Yrd Mat Sub Scr Fac Upp Levels Raised 4 | . . 1 . 2 1 XP Earned 9050 | 3000 600 1000 500 2650 1300 XP Spent 7030 | 2250 . 2200 . 2260 320 Upgrades 25 | 5 . 4 . 12 4 Power Slot 1 | . . 1 . . . Propulsion Slot 2 | 1 . . . 1 . Utility Slot 2 | 1 . 1 . . . Weapon Slot 1 | 1 . . . . . Core Integrity 8 | . . . . 4 4 Heat Dissipation 5 | . . . . 5 . Energy Generation 2 | . . . . 2 . Inventory Capacity 2 | 2 . . . . . Ranged Accuracy 2 | . . 2 . . . Protomatter Created 255 | . 80 74 . 90 11 Integrity Restored 648 | . 88 255 203 102 . Core 559 | . 88 255 114 102 . Parts 89 | . . . 89 . . Protomatter Decayed 119 | . . 91 9 19 . Game ------ Seed ScanTractorInsulator Manual? 0 Play Time 00:30:08 Cumulative 4.5 hours Start 2026.06.28 @ 00:55:16 End 2026.06.28 @ 01:23:44 Sessions 1 Manual Loads 0 Difficulty Rogue Special Mode Winter2019/RPGLIKE Game No. 7 Rogue 7 Adventurer 0 Explorer 0 Win Type - Total 0 Types 0/0/0/0/0/0/0/0/0/0 Lore% 3 Gallery% 10 Achievement% 9 Wizard Run 0 Options --------- Layout 0 ASCII 0 Keyboard 0 Movement Mouse Keybinds 0 Fullscreen 2 Font 18/SmallcapsGlow Map View 76x50 Zoom Use 0% Tactical HUD 1 Map Filters NONE Filters NONE Steam 1 RUN: 43c5c990-6fb0-46a8-8c3d-3c338eb1edf9